bitfinex/quotes_SOLUSD_20241122
["timestamp","ask_amount","ask_price","bid_price","bid_amount"]
[1732259909363,0.09367462,260.39,260.17,2.5]
[1732259909672,0.09367462,260.39,260.2,2.5]
[1732259909855,3.8405,260.38,260.15,2.5]
[1732259910043,3.8405,260.38,260.14,2.5]
[1732259910256,23.776884,260.37,260.16,2.5]
[1732259910439,20.0,260.36,260.16,2.5]
[1732259910756,20.0,260.34,260.16,2.5]
[1732259911141,20.0,260.36,260.16,2.5]
[1732259911540,23.776884,260.33,260.14,2.5]
[1732259911764,23.776884,260.29,260.11,2.5]
[1732259912160,23.776884,260.27,260.11,2.5]
[1732259912644,20.0,260.24,260.11,2.5]
[1732259912967,23.776884,260.25,260.1,5.0]
[1732259913158,23.776884,260.25,260.12,2.5]
[1732259914033,23.776884,260.25,260.1,5.0]
[1732259914238,20.0,260.22,260.07,2.5]
[1732259914464,23.776884,260.21,260.04,2.5]
[1732259914647,20.0,260.18,260.03,2.5]
[1732259914960,20.0,260.14,260.02,2.5]
[1732259915136,20.0,260.12,260.02,2.5]
[1732259915345,23.776884,260.11,260.02,2.5]
[1732259915549,20.0,260.1,259.97,2.5]
[1732259915848,23.776884,260.05,259.95,5.0]
[1732259916057,23.776884,260.05,259.97,2.5]
[1732259916259,23.776884,260.05,259.99,2.5]
[1732259916643,23.776884,260.23,259.99,5.0]
[1732259916842,20.0,260.2,259.99,5.0]
[1732259917038,20.0,260.18,259.99,5.0]
[1732259917254,23.776884,260.17,259.99,5.0]
[1732259917557,20.0,260.13,259.99,5.0]
[1732259917943,4.93371707,260.3,260.04,2.5]
[1732259918147,3.8406,260.37,260.15,2.5]
[1732259918340,3.8406,260.37,260.12,5.0]
[1732259918560,26.9506,260.37,260.1,5.0]
[1732259919146,26.9506,260.37,260.13,2.5]
[1732259919548,26.9506,260.37,260.06,9.1593]
[1732259919549,0.4,260.36,260.06,9.1593]
[1732259919752,0.09367462,260.35,260.06,9.1593]
[1732259919955,23.20367462,260.33,260.06,2.5]
[1732259920259,0.09367462,260.32,260.06,2.5]
[1732259920445,23.776884,260.27,260.06,2.5]
[1732259920651,20.0,260.24,260.04,2.5]
[1732259920953,23.776884,260.23,260.04,2.5]
[1732259921155,20.0,260.2,260.03,2.5]
[1732259921349,23.776884,260.19,260.03,2.5]
[1732259921556,20.0,260.16,260.03,2.5]
[1732259921756,20.0,260.14,260.05,2.5]
[1732259922063,23.776884,260.13,260.04,2.5]
[1732259922276,23.776884,260.21,260.07,2.5]
[1732259922564,3.8417,260.3,260.11,2.5]
[1732259922946,26.9517,260.3,260.04,2.5]
[1732259923263,26.9517,260.3,259.96,6.6593]
[1732259923264,36.556,260.3,260.07,2.5]
[1732259923663,36.64967462,260.3,260.07,2.5]
[1732259923972,3.8423,260.26,260.07,2.5]
[1732259924153,0.09367462,260.3,260.11,5.0]
[1732259924354,3.842,260.29,260.11,5.0]
[1732259925449,23.776884,260.26,260.13,2.5]
[1732259925657,20.0,260.25,260.13,2.5]
[1732259926055,23.776884,260.24,260.13,2.5]
[1732259926576,23.776884,260.24,260.11,5.0]
[1732259926873,23.776884,260.24,260.13,2.5]
[1732259929260,23.776884,260.24,260.13,2.46749188]
[1732259930066,23.776884,260.22,260.1,4.96749188]
[1732259930260,23.776884,260.22,260.09,2.46749188]
[1732259930578,23.776884,260.2,260.05,2.46749188]
[1732259930778,23.776884,260.2,259.97,2.5]
[1732259930779,23.776884,260.16,259.97,2.5]
[1732259931076,20.0,260.13,259.96,9.12679188]
[1732259931386,23.776884,260.12,259.96,9.12679188]
[1732259931673,23.776884,260.1,259.96,9.12679188]
[1732259931883,20.0,260.09,259.96,9.12679188]
[1732259932051,20.0,260.07,259.98,2.46749188]
[1732259932456,23.776884,260.06,259.98,2.46749188]
[1732259932676,20.0,260.05,259.96,6.6593]
[1732259932877,23.776884,260.04,259.94,2.46749188]
[1732259933072,23.776884,260.04,259.97,2.46749188]
[1732259933865,23.776884,260.04,259.98,2.46749188]
[1732259934066,23.776884,260.04,259.94,2.46749188]
[1732259934271,23.776884,260.04,259.96,4.96749188]
[1732259934568,23.776884,260.04,259.94,2.46749188]
[1732259935176,23.776884,260.05,259.94,2.46749188]
[1732259935474,20.0,260.04,259.94,2.46749188]
[1732259935661,23.776884,260.03,259.94,2.46749188]
[1732259936062,20.0,260.04,259.94,2.46749188]
[1732259936457,23.776884,260.03,259.94,2.46749188]
[1732259936860,23.776884,260.03,259.9,2.46749188]
[1732259936861,20.0,260.02,259.9,2.46749188]
[1732259937071,20.0,260.0,259.9,2.46749188]
[1732259937483,23.776884,259.99,259.9,2.46749188]
[1732259938192,23.776884,259.97,259.9,2.46749188]
[1732259938692,23.776884,259.99,259.86,2.46749188]
[1732259938865,23.776884,259.97,259.88,2.46749188]
[1732259939065,23.776884,259.95,259.88,2.46749188]
[1732259940285,23.776884,259.93,259.83,2.46749188]
[1732259940469,23.776884,259.93,259.85,2.46749188]
[1732259940987,20.0,259.92,259.81,2.46749188]
[1732259941176,23.776884,259.89,259.79,2.46749188]
[1732259941492,20.0,259.88,259.79,2.46749188]
[1732259941864,23.776884,259.87,259.78,6.571]
[1732259943164,23.776884,259.87,259.77,2.46749188]
[1732259943766,19.2253,260.08,259.83,2.46749188]
[1732259943983,6.18508983,260.03,259.87,2.46749188]
[1732259944271,2.5,260.06,259.74,2.46748048]
[1732259944470,3.8454,260.05,259.74,2.46748048]
[1732259945372,20.0,260.06,259.74,2.46748048]
[1732259945575,2.5,260.05,259.74,2.46748048]
[1732259945871,20.0,260.04,259.75,23.776884]
[1732259946071,20.0,260.02,259.75,23.776884]
[1732259946478,23.776884,259.99,259.75,23.776884]
[1732259946777,0.09367462,260.11,259.88,2.46748048]
[1732259946985,0.09367462,260.11,259.91,2.46748048]
[1732259947282,0.09367462,260.11,259.88,2.46748048]
[1732259947591,1.63089762,260.11,259.87,2.5]
[1732259947789,0.09367462,260.1,259.87,2.5]
[1732259947967,13.4568,260.09,259.87,2.5]
[1732259948282,0.09367462,260.08,259.85,16.5718]
[1732259948997,0.09367462,260.07,259.85,16.5718]
[1732259949577,23.776884,260.03,259.83,2.46748048]
[1732259949781,20.0,260.02,259.83,2.46748048]
[1732259949987,20.0,260.0,259.81,2.46748048]
[1732259950192,20.0,259.98,259.81,2.46748048]
[1732259950396,20.0,259.98,259.77,16.5718]
[1732259950397,23.776884,259.97,259.79,2.46748048]
[1732259950605,23.776884,259.97,259.77,16.5718]
[1732259950606,20.0,259.96,259.77,16.5718]
[1732259950894,19.7025,260.06,259.77,16.5718]
[1732259950895,20.0,259.92,259.77,16.5718]
[1732259951194,20.0,259.92,259.75,2.46748048]
[1732259951388,20.0,259.9,259.75,2.46748048]
[1732259951698,20.0,259.9,259.74,2.46748048]
[1732259952395,20.0,259.9,259.71,4.96748048]
[1732259952593,3.8477,259.89,259.74,2.46748048]
[1732259954302,3.8477,259.89,259.72,2.46748048]
[1732259954492,3.8477,259.89,259.74,2.46748048]
[1732259954673,20.0,259.87,259.69,6.571]
[1732259954873,20.0,259.87,259.7,2.46748048]
[1732259955320,20.0,259.87,259.7,4.96748048]
[1732259955499,3.8477,259.89,259.73,2.46748048]
[1732259956186,0.09367462,259.91,259.75,2.5]
[1732259956394,3.94117462,259.91,259.78,2.46748048]
[1732259956592,3.94117462,259.91,259.8,2.46748048]
[1732259957689,3.94117462,259.91,259.78,2.46748048]
[1732259957994,3.94117462,259.91,259.76,2.46748048]
[1732259958713,3.94117462,259.91,259.78,2.46748048]
[1732259959087,3.94117462,259.91,259.7,4.96748048]
[1732259959416,20.0,259.89,259.7,2.46748048]
[1732259959623,20.0,259.89,259.69,6.571]
[1732259959904,23.776884,259.88,259.69,6.571]
[1732259960106,20.0,259.87,259.69,6.571]
[1732259960310,3.8482,259.86,259.69,6.571]
[1732259961915,0.09367462,259.91,259.77,2.46748048]
[1732259962712,3.94117462,259.91,259.79,2.46748048]
[1732259962891,0.09367462,259.91,259.81,2.46748048]
[1732259963087,0.09367462,259.91,259.83,2.46748048]
[1732259963718,0.09367462,259.91,259.44,29.55600035]
[1732259963719,2.5,259.5,259.44,29.55600035]
[1732259963904,7.82351414,259.49,259.44,23.39379137]
[1732259964105,7.82351414,259.49,259.34,82.21991824]
[1732259964308,3.8538,259.48,259.34,82.21991824]
[1732259964511,9.07906401,259.47,259.34,35.80413047]
[1732259964710,20.0,259.52,259.29,6.0053]
[1732259965016,23.8533,259.52,259.29,33.92105537]
[1732259965226,23.776884,259.51,259.29,33.92105537]
[1732259965391,20.0,259.55,259.33,24.06675537]
[1732259965894,3.8524,259.58,259.37,24.06675537]
[1732259966114,20.0,259.56,259.37,24.06675537]
[1732259966429,20.0,259.56,259.39,24.06675537]
[1732259966610,3.8524,259.58,259.41,39.09001099]
[1732259967229,3.8524,259.58,259.37,39.09001099]
[1732259967402,3.8524,259.58,259.39,39.09001099]
[1732259968221,23.776884,259.61,259.39,39.09001099]
[1732259968426,23.776884,259.59,259.39,39.09001099]
[1732259968612,20.0,259.58,259.37,39.09001099]
[1732259969101,3.8525,259.57,259.37,39.09001099]
[1732259969301,3.8525,259.57,259.35,39.09001099]
[1732259969707,20.0,259.55,259.35,39.09001099]
[1732259970504,26.276884,259.54,259.33,39.09001099]
[1732259970823,20.0,259.53,259.31,39.09001099]
[1732259971007,20.0,259.51,259.29,45.09531099]
[1732259971215,3.8535,259.5,259.29,41.24731099]
[1732259972127,3.854,259.47,259.29,41.24731099]
[1732259972723,3.854,259.47,259.27,39.09001099]
[1732259972931,20.0,259.45,259.27,39.09001099]
[1732259973910,3.8544,259.44,259.27,39.09001099]
[1732259974118,3.8544,259.44,259.08,3.849]
[1732259974119,23.776884,259.41,259.21,39.09001099]
[1732259974322,20.0,259.4,259.21,39.09001099]
[1732259974524,20.0,259.4,259.13,6.4416]
[1732259974727,20.0,259.4,259.22,39.09001099]
[1732259975124,3.8551,259.39,259.22,39.09001099]
[1732259975432,244.32830888,259.38,259.26,25.72077553]
[1732259975732,2.5,259.33,259.11,23.776884]
[1732259975920,62.38169587,259.32,259.25,39.09001099]
[1732259976122,49.38550922,259.31,259.25,39.09001099]
[1732259976322,72.77864518,259.3,259.25,39.09001099]
[1732259976533,65.29112869,259.29,259.12,20.0]
[1732259976733,18.19466128,259.28,259.24,39.09001099]
[1732259977028,18.19466128,259.27,259.22,38.59001099]
[1732259977236,35.29381218,259.24,259.2,39.09001099]
[1732259977429,35.29381218,259.23,259.2,39.09001099]
[1732259977627,2.5,259.32,259.2,39.09001099]
[1732259977813,2.5,259.32,259.24,39.09001099]
[1732259978320,2.5,259.34,259.26,39.09001099]
[1732259978533,2.5,259.34,259.28,39.09001099]
[1732259979432,2.5,259.32,259.28,39.09001099]
[1732259979634,2.5,259.32,259.26,39.09001099]
[1732259979835,2.5,259.32,259.24,39.09001099]
[1732259980420,2.5,259.33,259.24,39.09001099]
[1732259980738,2.5,259.3,259.24,39.09001099]
[1732259980926,2.5,259.34,259.24,39.09001099]
[1732259981128,2.5,259.3,259.24,39.09001099]
[1732259982560,2.5,259.31,259.24,39.09001099]
[1732259982742,2.5,259.34,259.24,39.09001099]
[1732259982942,2.5,259.31,259.24,39.09001099]
[1732259983543,2.5,259.39,259.24,39.09001099]
[1732259983756,2.5,259.37,259.3,39.09001099]
[1732259983947,2.5,259.34,259.3,39.09001099]
[1732259984146,2.5,259.39,259.29,20.0]
[1732259984347,2.5,259.39,259.3,39.09001099]
[1732259984647,2.5,259.42,259.29,20.0]
[1732259985053,2.5,259.38,259.29,20.0]
[1732259985637,2.5,259.37,259.29,20.0]
[1732259986048,0.09367462,259.45,259.17,8.9416]
[1732259986049,2.5,259.35,259.26,20.0]
[1732259986252,2.5,259.38,259.26,59.09001099]
[1732259986442,2.5,259.36,259.26,59.09001099]
[1732259986868,2.5,259.38,259.26,59.09001099]
[1732259987045,2.5,259.36,259.26,59.09001099]
[1732259987447,2.5,259.36,259.27,23.776884]
[1732259987672,2.5,259.59,259.5,119.41170614]
[1732259987968,2.5,259.47,259.41,23.776884]
[1732259988159,7.4728,259.64,259.41,23.776884]
[1732259988160,3.8526,259.57,259.41,23.776884]
[1732259988464,2.5,259.5,259.41,23.776884]
[1732259989042,3.852,259.61,259.4,39.09001099]
[1732259989270,2.5,259.64,259.5,23.776884]
[1732259989456,2.5,259.62,259.5,23.776884]
[1732259989865,2.5,259.6,259.5,23.776884]
[1732259990071,2.5,259.62,259.56,39.09001099]
[1732259990374,2.5,259.62,259.54,39.09001099]
[1732259991865,2.5,259.59,259.54,39.09001099]
[1732259992049,2.5,259.65,259.56,39.09001099]
[1732259992251,2.5,259.63,259.58,39.09001099]
[1732259992458,2.5,259.65,259.58,39.09001099]
[1732259992677,6.3506,259.7,259.58,39.09001099]
[1732259992970,2.5,259.66,259.58,39.09001099]
[1732259993469,2.5,259.63,259.58,39.09001099]
[1732259993652,2.5,259.65,259.58,39.09001099]
[1732259994365,2.5,259.63,259.58,39.09001099]
[1732259994567,7.4728,259.74,259.62,39.09001099]
[1732259994568,2.5,259.69,259.62,39.09001099]
[1732259997183,2.5,259.67,259.62,39.09001099]
[1732259997881,2.5,259.67,259.61,39.09001099]
[1732259998084,2.5,259.63,259.57,39.09001099]
[1732259999183,2.5,259.65,259.59,39.09001099]
[1732259999379,2.5,259.67,259.59,39.09001099]
[1732259999685,2.5,259.65,259.59,39.09001099]
[1732260000406,2.5,259.64,259.61,39.09001099]
[1732260000682,2.5,259.65,259.61,24.0227165]
[1732260000990,2.5,259.7,259.59,24.0227165]
[1732260001283,2.5,259.66,259.57,24.0227165]
[1732260001661,2.5,259.63,259.57,24.0227165]
[1732260001979,2.5,259.6,259.53,24.0227165]
[1732260002197,2.5,259.6,259.41,19.4033]
[1732260002198,2.5,259.6,259.52,24.0227165]
[1732260002499,2.5,259.54,259.5,24.0227165]
[1732260002869,2.5,259.54,259.48,24.0227165]
[1732260003067,2.5,259.54,259.5,24.0227165]
[1732260003383,2.5,259.61,259.52,24.0227165]
[1732260003589,2.5,259.62,259.55,24.0227165]
[1732260003776,2.5,259.6,259.55,24.0227165]
[1732260003969,2.5,259.62,259.57,24.0227165]
[1732260004174,2.5,259.68,259.57,24.0227165]
[1732260004388,2.5,259.68,259.58,20.0]
[1732260004573,2.5,259.66,259.58,20.0]
[1732260005394,2.5,259.68,259.59,24.0227165]
[1732260006381,2.5,259.68,259.57,24.0227165]
[1732260006582,21.9843,259.76,259.64,24.0227165]
[1732260007066,21.9843,259.76,259.66,24.0227165]
[1732260007268,2.5,259.76,259.66,24.0227165]
[1732260007475,2.5,259.76,259.68,24.0227165]
[1732260008096,2.5,259.76,259.66,24.0227165]
[1732260008266,2.5,259.75,259.64,24.0227165]
[1732260008471,2.5,259.72,259.64,24.0227165]
[1732260009184,2.5,259.7,259.64,24.0227165]
[1732260009694,2.5,259.69,259.62,24.0227165]
[1732260009866,3.8497,259.76,259.62,24.0227165]
[1732260009867,2.5,259.71,259.62,24.0227165]
[1732260010071,2.5,259.71,259.64,24.0227165]
[1732260010995,2.5,259.73,259.64,24.0227165]
[1732260011490,2.5,259.71,259.64,24.0227165]
[1732260011875,2.5,259.71,259.66,24.0227165]
[1732260012074,2.5,259.73,259.66,24.0227165]
[1732260012272,2.5,259.75,259.66,24.0227165]
[1732260012489,2.5,259.79,259.66,24.0227165]
[1732260012799,2.5,259.78,259.66,24.0227165]
[1732260013497,2.5,259.74,259.66,24.0227165]
[1732260013889,2.5,259.72,259.66,24.0227165]
[1732260014077,7.7172,259.82,259.64,24.0227165]
[1732260014078,2.5,259.75,259.64,24.0227165]
[1732260014276,2.5,259.73,259.64,24.0227165]
[1732260014688,2.5,259.74,259.64,24.0227165]
[1732260014879,2.5,259.71,259.64,24.0227165]
[1732260015302,2.5,259.77,259.66,24.0227165]
[1732260015699,2.5,259.75,259.66,24.0227165]
[1732260016090,2.5,259.77,259.66,24.0227165]
[1732260016398,2.5,259.75,259.66,24.0227165]
[1732260018416,2.5,259.73,259.66,24.0227165]
[1732260018701,2.5,259.76,259.66,24.0227165]
[1732260018906,2.5,259.74,259.66,24.0227165]
[1732260019112,2.5,259.74,259.64,24.0227165]
[1732260019321,2.5,259.72,259.64,24.0227165]
[1732260019890,2.5,259.75,259.64,24.0227165]
[1732260020105,2.5,259.72,259.64,24.0227165]
[1732260020607,7.7172,259.82,259.58,23.776884]
[1732260020608,2.5,259.7,259.62,24.0227165]
[1732260021418,2.5,259.72,259.64,24.0227165]
[1732260024993,2.5,259.7,259.64,24.0227165]
[1732260025901,2.5,259.72,259.64,24.0227165]
[1732260026614,2.5,259.72,259.7,24.0227165]
[1732260027714,2.5,259.72,259.68,24.0227165]
[1732260028622,2.5,259.72,259.68,15.00466378]
[1732260029401,22.5,259.76,259.66,15.00466378]
[1732260029697,2.5,259.72,259.66,15.00466378]
[1732260030618,2.5,259.72,259.68,15.00466378]
[1732260032413,2.5,259.72,259.66,15.00466378]
[1732260032818,2.5,259.74,259.66,15.00466378]
[1732260033001,2.5,259.71,259.66,15.00466378]
[1732260034005,2.5,259.71,259.64,15.00466378]
[1732260034213,2.5,259.7,259.64,15.00466378]
[1732260034410,2.5,259.68,259.64,15.00466378]
[1732260037311,2.5,259.68,259.62,15.00466378]
[1732260037827,2.5,259.67,259.62,15.00466378]
[1732260038206,2.5,259.67,259.64,15.00466378]
[1732260038703,2.5,259.67,259.63,15.00466378]
[1732260039132,2.5,259.71,259.64,15.00466378]
[1732260039308,2.8713387,259.7,259.65,15.00466378]
[1732260039512,2.8713387,259.69,259.65,15.00466378]
[1732260039815,2.8713387,259.68,259.65,15.00466378]
[1732260040012,2.8713387,259.67,259.65,15.00466378]
[1732260040206,2.5,259.69,259.65,15.00466378]
[1732260040427,2.87142994,259.68,259.65,15.00466378]
[1732260040618,2.87142994,259.67,259.65,15.00466378]
[1732260040820,2.5,259.69,259.65,15.00466378]
[1732260041028,2.5,259.69,259.6,23.776884]
[1732260041029,2.87157505,259.68,259.67,15.00466378]
[1732260041407,2.87157505,259.68,259.65,15.00466378]
[1732260041623,2.87157505,259.67,259.65,15.00466378]
[1732260041828,2.5,259.71,259.65,15.00466378]
[1732260042027,2.87172892,259.7,259.65,15.00466378]
[1732260042209,2.87172892,259.69,259.67,15.00466378]
[1732260042407,2.87172892,259.68,259.67,15.00466378]
[1732260042633,2.87172892,259.7,259.67,15.00466378]
[1732260042839,2.87172892,259.69,259.67,15.00466378]
[1732260043008,2.87172892,259.68,259.67,15.00466378]
[1732260043217,2.87172892,259.68,259.65,15.00466378]
[1732260043520,2.87172892,259.67,259.65,15.00466378]
[1732260043715,2.87172892,259.7,259.65,15.00466378]
[1732260043924,2.87259553,259.69,259.65,15.00466378]
[1732260044122,2.87259553,259.68,259.65,15.00466378]
[1732260044331,2.87259553,259.67,259.65,15.00466378]
[1732260044517,2.5,259.71,259.65,15.00466378]
[1732260044711,2.87329313,259.7,259.65,15.00466378]
[1732260045033,2.87329313,259.69,259.63,15.00466378]
[1732260045230,2.87329313,259.68,259.62,15.00466378]
[1732260045409,2.87329313,259.68,259.63,15.00466378]
[1732260045817,2.87329313,259.68,259.64,15.00466378]
[1732260046325,2.87329313,259.67,259.64,15.00466378]
[1732260046632,2.87329313,259.66,259.64,15.00466378]
[1732260046934,2.87329313,259.65,259.64,15.00466378]
[1732260047131,4.59409616,259.7,259.69,129.72670687]
[1732260047430,4.59409616,259.75,259.69,129.72670687]
[1732260047630,4.59409616,259.75,259.66,15.00466378]
[1732260047812,4.59409616,259.78,259.66,15.00466378]
[1732260048137,4.59409616,259.77,259.66,15.00466378]
[1732260048340,4.59409616,259.76,259.66,15.00466378]
[1732260048639,23.8494,259.78,259.66,15.00466378]
[1732260048822,24.59409616,259.77,259.66,15.00466378]
[1732260049025,24.59409616,259.76,259.64,15.00466378]
[1732260049209,24.59409616,259.76,259.6,23.776884]
[1732260049210,24.59409616,259.75,259.65,15.00466378]
[1732260049410,24.59409616,259.74,259.65,15.00466378]
[1732260049631,4.59409616,259.73,259.65,15.00466378]
[1732260050337,4.59409616,259.73,259.68,15.00466378]
[1732260050513,4.59409616,259.78,259.69,15.00466378]
[1732260050714,4.60478736,259.77,259.69,15.00466378]
[1732260050913,4.60478736,259.76,259.69,15.00466378]
[1732260051112,4.60478736,259.76,259.61,15.00466378]
[1732260051113,4.60478736,259.78,259.68,15.00466378]
[1732260051413,4.60478736,259.77,259.68,15.00466378]
[1732260051629,4.60478736,259.76,259.68,15.00466378]
[1732260051828,4.60478736,259.75,259.68,15.00466378]
[1732260052025,4.60478736,259.78,259.68,15.00466378]
[1732260052229,4.60478736,259.77,259.68,15.00466378]
[1732260052534,4.60478736,259.76,259.68,15.00466378]
[1732260052714,4.60478736,259.75,259.68,15.00466378]
[1732260052919,4.60478736,259.77,259.68,15.00466378]
[1732260053245,4.60478736,259.76,259.68,15.00466378]
[1732260053529,4.60478736,259.75,259.68,15.00466378]
[1732260053835,4.60478736,259.77,259.68,15.00466378]
[1732260054031,4.60478736,259.76,259.68,15.00466378]
[1732260054235,4.60478736,259.75,259.68,15.00466378]
[1732260054529,4.60660445,259.77,259.68,15.00466378]
[1732260054732,4.60660445,259.76,259.68,15.00466378]
[1732260055038,4.60660445,259.75,259.68,15.00466378]
[1732260055237,20.0,259.76,259.65,15.00466378]
[1732260055544,4.60660445,259.75,259.65,15.00466378]
[1732260055831,4.60660445,259.74,259.71,15.00466378]
[1732260056031,11.76500535,259.82,259.79,124.57436254]
[1732260056237,4.60554161,259.81,259.78,15.00466378]
[1732260056424,24.720189,259.92,259.78,15.00466378]
[1732260056627,24.720189,259.92,259.76,15.00466378]
[1732260056852,9.335,259.92,259.74,15.00466378]
[1732260057237,3.8477,259.9,259.72,15.00466378]
[1732260057558,23.776884,259.85,259.68,15.00466378]
[1732260057727,20.0,259.84,259.68,15.00466378]
[1732260058744,3.8486,259.83,259.68,15.00466378]
[1732260059141,22.87480601,259.82,259.68,15.00466378]
[1732260059352,22.87480601,259.81,259.68,15.00466378]
[1732260059553,22.87480601,259.8,259.7,15.00466378]
[1732260059756,22.87480601,259.79,259.7,15.00466378]
[1732260060054,22.87480601,259.78,259.68,15.00466378]
[1732260060241,2.87480601,259.77,259.68,15.00466378]
[1732260060443,2.87480601,259.76,259.68,15.00466378]
[1732260060636,2.87480601,259.75,259.68,15.00466378]
[1732260060846,2.87480601,259.74,259.68,15.00466378]
[1732260061036,2.87480601,259.73,259.66,15.00466378]
[1732260061236,13.1845,259.77,259.66,15.00466378]
[1732260061530,2.87453497,259.76,259.66,15.00466378]
[1732260061745,2.87453497,259.75,259.66,15.00466378]
[1732260061943,2.87453497,259.74,259.66,15.00466378]
[1732260062228,2.87453497,259.73,259.66,15.00466378]
[1732260062436,2.87453497,259.72,259.64,15.00466378]
[1732260062637,2.87453497,259.71,259.64,15.00466378]
[1732260062855,2.8750065,259.7,259.64,15.00466378]
[1732260063027,3.8499,259.75,259.64,15.00466378]
[1732260063233,22.87500759,259.74,259.64,15.00466378]
[1732260063433,2.87500759,259.73,259.64,15.00466378]
[1732260063634,2.87500759,259.72,259.64,15.00466378]
[1732260063842,3.8499,259.75,259.64,15.00466378]
[1732260064054,6.72502879,259.74,259.64,15.00466378]
[1732260064351,22.87502879,259.73,259.64,15.00466378]
[1732260064556,22.87494582,259.73,259.64,15.00466378]
[1732260064742,3.85,259.74,259.62,15.00466378]
[1732260064945,2.87501069,259.73,259.62,15.00466378]
[1732260065152,22.87501069,259.73,259.62,15.00466378]
[1732260065346,22.87501069,259.72,259.62,15.00466378]
[1732260065549,2.87501069,259.71,259.62,15.00466378]
[1732260065746,2.87501069,259.7,259.62,15.00466378]
[1732260065952,2.87501069,259.69,259.62,15.00466378]
[1732260066340,3.8497,259.76,259.62,15.00466378]
[1732260066563,2.87491546,259.75,259.62,15.00466378]
[1732260066766,23.776884,259.72,259.46,30.2302]
[1732260066936,11.76500535,259.66,259.46,39.8373948]
[1732260067132,12.20991546,259.65,259.46,39.8373948]
[1732260067337,2.87491546,259.64,259.46,39.8373948]
[1732260067744,6.72651546,259.63,259.46,39.8373948]
[1732260067938,2.87491546,259.62,259.46,21.1784]
[1732260068156,23.0386,259.6,259.43,9.6071948]
[1732260068460,2.87491546,259.59,259.43,9.6071948]
[1732260068643,2.87491546,259.58,259.43,15.03295799]
[1732260068847,2.87491546,259.57,259.43,15.03295799]
[1732260069042,2.87491546,259.56,259.43,15.03295799]
[1732260069238,23.0386,259.6,259.43,15.03295799]
[1732260069239,3.8525,259.57,259.43,15.03295799]
[1732260069564,2.86836428,259.56,259.43,15.03295799]
[1732260069758,3.8525,259.57,259.43,15.03295799]
[1732260069940,2.86835247,259.56,259.43,15.03295799]
[1732260070255,3.8523,259.59,259.43,15.03295799]
[1732260070456,2.86615712,259.58,259.43,15.03295799]
[1732260070657,2.86615712,259.57,259.43,15.03295799]
[1732260070862,3.8523,259.59,259.44,23.776884]
[1732260071063,2.86619037,259.58,259.44,23.776884]
[1732260071240,6.71857885,259.58,259.44,23.776884]
[1732260071444,2.86617885,259.57,259.44,23.776884]
[1732260071645,3.8524,259.58,259.44,23.776884]
[1732260071853,8.9941,259.56,259.33,8.8539]
[1732260072056,2.86433148,259.55,259.36,15.03295799]
[1732260072360,2.86433148,259.55,259.34,15.03295799]
[1732260072835,2.86433148,259.55,259.3,15.03295799]
[1732260072836,20.0,259.52,259.3,15.03295799]
[1732260073044,2.86433148,259.51,259.3,15.03295799]
[1732260073238,2.86433148,259.5,259.3,15.03295799]
[1732260073450,6.71803148,259.49,259.3,15.03295799]
[1732260073643,2.86433148,259.48,259.26,15.03295799]
[1732260073943,11.85843148,259.47,259.26,15.03295799]
[1732260074144,2.86433148,259.46,259.26,15.03295799]
[1732260074454,2.86433148,259.45,259.26,15.03295799]
[1732260074641,2.86433148,259.44,259.26,15.03295799]
[1732260074847,3.8544,259.44,259.24,15.03295799]
[1732260075058,3.8542,259.46,259.3,15.03295799]
[1732260076570,3.8542,259.46,259.31,23.776884]
[1732260077454,3.8542,259.46,259.31,38.80984199]
[1732260077957,8.9941,259.47,259.32,15.03295799]
[1732260078271,8.9941,259.47,259.38,15.03295799]
[1732260078641,8.9941,259.47,259.4,15.03295799]
[1732260079866,30.5591,259.53,259.42,15.03295799]
[1732260080049,30.5591,259.53,259.43,15.03295799]
[1732260080366,30.5591,259.53,259.42,15.03295799]